fUST/lending_fUST_20240811
["ID","MTS","AMOUNT","RATE_DAILY","PERIOD"]
[334633654,1723367455973,-500.0,0.00021643,3]
[334633655,1723367455984,-500.0,0.00021643,3]
[334633656,1723367455995,-500.0,0.00021643,3]
[334633657,1723367456004,-517.5602254,0.00021643,3]
[334633658,1723367456013,-500.0,0.00021643,3]
[334633659,1723367456022,-500.0,0.00021643,3]
[334633660,1723367456031,-500.0,0.00021643,3]
[334633661,1723367456041,-524.31644947,0.00021643,3]
[334633662,1723367456052,-922.13,0.00021643,3]
[334633663,1723367456062,-500.0,0.00021643,3]
[334633664,1723367456072,-500.0,0.00021643,3]
[334633665,1723367456081,-810.7,0.00021643,3]
[334633666,1723367456091,-697.41,0.00021643,3]
[334633667,1723367456100,-499.99950957,0.00021643,3]
[334633668,1723367456109,-337.66065711,0.00021643,3]
[334633669,1723367456119,-500.0,0.00021643,3]
[334633670,1723367456128,-553.86,0.00021643,3]
[334633671,1723367456138,-500.0,0.00021643,3]
[334633672,1723367456147,-500.0,0.00021643,3]
[334633673,1723367456157,-500.0,0.00021643,3]
[334633674,1723367456166,-522.40187201,0.00021643,3]
[334633675,1723367456175,-500.0,0.00021643,3]
[334633676,1723367456184,-915.89,0.00021643,3]
[334633677,1723367456194,-826.24,0.00021643,3]
[334633678,1723367456206,-937.71,0.00021643,3]
[334633679,1723367456215,-500.0,0.00021643,3]
[334633680,1723367456224,-500.0,0.00021643,3]
[334633681,1723367456233,-750.32,0.00021643,3]
[334633682,1723367456243,-500.0,0.00021643,3]
[334633683,1723367456252,-500.0,0.00021643,3]
[334633684,1723367456261,-815.4,0.00021643,3]
[334633685,1723367456271,-500.0,0.00021643,3]
[334633686,1723367456284,-532.7,0.00021643,3]
[334633687,1723367456293,-556.0,0.00021643,3]
[334633688,1723367456303,-500.0,0.00021643,3]
[334633689,1723367456325,-500.0,0.00021643,3]
[334633690,1723367456334,-500.0,0.00021643,3]
[334633691,1723367456343,-500.0,0.00021643,3]
[334633692,1723367456353,-500.0,0.00021643,3]
[334633693,1723367456362,-500.0,0.00021643,3]
[334633694,1723367456373,-500.0,0.00021643,3]
[334633695,1723367456382,-425.79725146,0.00021643,3]
[334633696,1723367456391,-500.0,0.00021643,3]
[334633697,1723367456400,-898.61,0.00021643,3]
[334633698,1723367456409,-500.0,0.00021643,3]
[334633699,1723367456418,-500.0,0.00021643,3]
[334633700,1723367456428,-500.0,0.00021643,3]
[334633701,1723367456437,-666.53,0.00021643,3]
[334633702,1723367456448,-522.9380903,0.00021643,3]
[334633703,1723367456459,-500.0,0.00021643,3]
[334633704,1723367456468,-500.0,0.00021643,3]
[334633705,1723367456477,-500.0,0.00021643,3]
[334633706,1723367456486,-500.0,0.00021643,3]
[334633707,1723367456495,-500.0,0.00021643,3]
[334633708,1723367456504,-189.0,0.00021643,3]
[334633709,1723367456513,-500.0,0.00021643,3]
[334633710,1723367456522,-500.0,0.00021643,3]
[334633711,1723367456531,-500.0,0.00021643,3]
[334633712,1723367456540,-500.0,0.00021643,3]
[334633713,1723367456549,-1496.38,0.00021643,3]
[334633714,1723367456558,-530.39,0.00021643,3]
[334633715,1723367456569,-577.6,0.00021643,3]
[334633716,1723367456581,-500.0,0.00021643,3]
[334633717,1723367456591,-500.0,0.00021643,3]
[334633718,1723367456602,-875.22,0.00021643,3]
[334633719,1723367456613,-587.95,0.00021643,3]
[334633720,1723367456624,-500.0,0.00021643,3]
[334633721,1723367456635,-500.0,0.00021643,3]
[334633722,1723367456646,-500.0,0.00021643,3]
[334633723,1723367456656,-1026.11,0.00021643,3]
[334633724,1723367456665,-560.45,0.00021643,3]
[334633725,1723367456674,-682.55,0.00021643,3]
[334633726,1723367456686,-660.23,0.00021643,3]
[334633727,1723367456697,-572.42,0.00021643,3]
[334633728,1723367456708,-500.0,0.00021643,3]
[334633729,1723367456717,-757.17,0.00021643,3]
[334633730,1723367456727,-500.0,0.00021643,3]
[334633731,1723367456737,-576.05,0.00021643,2]
[334633732,1723367456747,-673.28,0.00021643,3]
[334633733,1723367456757,-500.0,0.00021643,3]
[334633734,1723367456766,-500.0,0.00021643,3]
[334633735,1723367456775,-500.0,0.00021643,3]
[334633736,1723367456784,-500.0,0.00021643,3]
[334633737,1723367456793,-635.46,0.00021643,3]
[334633738,1723367456803,-568.13,0.00021643,3]
[334633739,1723367456812,-693.6,0.00021643,3]
[334633740,1723367456821,-500.0,0.00021643,3]
[334633741,1723367456830,-333.26508074,0.00021643,3]
[334633742,1723367456840,-500.0,0.00021643,3]
[334633743,1723367456849,-755.16,0.00021643,3]
[334633744,1723367456858,-500.0,0.00021643,3]
[334633745,1723367456867,-1253.28,0.00021643,3]
[334633746,1723367456875,-500.0,0.00021643,3]
[334633747,1723367456885,-810.68,0.00021643,3]
[334633748,1723367456894,-500.0,0.00021643,3]
[334633749,1723367456903,-1228.56,0.00021643,3]
[334633750,1723367456913,-586.07,0.00021643,3]
[334633751,1723367456922,-1034.44,0.00021643,3]
[334633752,1723367456931,-517.51521181,0.00021643,3]
[334633753,1723367456940,-500.0,0.00021643,3]
[334633754,1723367456949,-500.0,0.00021643,3]
[334633755,1723367456958,-500.0,0.00021643,3]
[334633756,1723367456967,-1096.91,0.00021643,3]
[334633757,1723367456976,-500.0,0.00021643,3]
[334633758,1723367456986,-720.32,0.00021643,3]
[334633759,1723367456995,-1202.25,0.00021643,3]
[334633760,1723367457005,-534.64,0.00021643,3]
[334633761,1723367457014,-500.0,0.00021643,3]
[334633762,1723367457023,-1305.3,0.00021643,3]
[334633763,1723367457032,-500.0,0.00021643,3]
[334633764,1723367457042,-753.18,0.00021643,3]
[334633765,1723367457051,-520.48842919,0.00021643,3]
[334633766,1723367457060,-628.08,0.00021643,3]
[334633767,1723367457070,-500.0,0.00021643,3]
[334633768,1723367457078,-500.0,0.00021643,3]
[334633769,1723367457088,-1090.65,0.00021643,3]
[334633770,1723367457096,-500.0,0.00021643,3]
[334633771,1723367457105,-500.0,0.00021643,3]
[334633772,1723367457114,-500.0,0.00021643,3]
[334633773,1723367457123,-540.40713308,0.00021643,3]
[334633774,1723367457132,-500.0,0.00021643,3]
[334633775,1723367457141,-500.0,0.00021643,3]
[334633776,1723367457150,-668.61,0.00021643,3]
[334633777,1723367457160,-500.0,0.00021643,3]
[334633778,1723367457169,-500.0,0.00021643,3]
[334633779,1723367457178,-500.0,0.00021643,3]
[334633780,1723367457187,-500.0,0.00021643,3]
[334633781,1723367457197,-500.0,0.00021643,3]
[334633782,1723367457211,-500.0,0.00021643,3]
[334633783,1723367457220,-500.0,0.00021643,3]
[334633784,1723367457229,-500.0,0.00021643,3]
[334633785,1723367457238,-500.0,0.00021643,3]
[334633786,1723367457248,-500.0,0.00021643,3]
[334633787,1723367457258,-500.0,0.00021643,3]
[334633788,1723367457267,-500.0,0.00021643,3]
[334633789,1723367457278,-1742.1,0.00021643,3]
[334633790,1723367457288,-1649.43,0.00021643,3]
[334633791,1723367457297,-500.0,0.00021643,3]
[334633792,1723367457306,-1672.15,0.00021643,3]
[334633793,1723367457316,-1158.36,0.00021643,3]
[334633794,1723367457326,-500.0,0.00021643,3]
[334633795,1723367457335,-500.0,0.00021643,3]
[334633796,1723367457345,-500.0,0.00021643,3]
[334633797,1723367457354,-1765.92,0.00021643,3]
[334633798,1723367457363,-500.0,0.00021643,3]
[334633799,1723367457373,-500.0,0.00021643,3]
[334633800,1723367457382,-500.0,0.00021643,3]
[334633801,1723367457392,-1063.78,0.00021643,3]
[334633802,1723367457401,-500.0,0.00021643,3]
[334633803,1723367457412,-2082.16,0.00021643,3]
[334633804,1723367457422,-2977.5,0.00021643,3]
[334633805,1723367457432,-500.0,0.00021643,3]
[334633806,1723367457441,-2021.78,0.00021643,3]
[334633807,1723367457451,-1724.63,0.00021643,3]
[334633808,1723367457460,-500.0,0.00021643,3]
[334633809,1723367457470,-500.0,0.00021643,3]
[334633810,1723367457479,-500.0,0.00021643,3]
[334633811,1723367457489,-1825.06,0.00021643,3]
[334633812,1723367457499,-500.0,0.00021643,3]
[334633813,1723367457508,-1037.96,0.00021643,3]
[334633814,1723367457518,-10565.74,0.00021643,3]
[334633815,1723367457527,-500.0,0.00021643,3]
[334633816,1723367457536,-2066.71,0.00021643,3]
[334633817,1723367457546,-576.22,0.00021643,3]
[334633818,1723367457556,-500.0,0.00021643,3]
[334633819,1723367457566,-500.0,0.00021643,3]
[334633820,1723367457575,-3261.7,0.00021643,3]
[334633821,1723367457585,-500.0,0.00021643,3]
[334633822,1723367457595,-713.55,0.00021643,3]
[334633823,1723367457604,-500.0,0.00021643,3]
[334633824,1723367457614,-500.0,0.00021643,3]
[334633825,1723367457623,-2064.29,0.00021643,3]
[334633826,1723367457632,-1959.8,0.00021643,3]
[334633827,1723367457641,-500.0,0.00021643,3]
[334633828,1723367457650,-540.09,0.00021643,3]
[334633829,1723367457659,-500.0,0.00021643,3]
[334633830,1723367457669,-494.71731351,0.00021643,3]
[334633831,1723367457679,-500.0,0.00021643,3]
[334633832,1723367457691,-500.0,0.00021643,3]
[334633833,1723367457700,-500.0,0.00021643,3]
[334633834,1723367457710,-500.0,0.00021643,3]
[334633835,1723367457721,-805.51,0.00021643,3]
[334633836,1723367457732,-513.1,0.00021643,3]
[334633837,1723367457741,-1372.34,0.00021643,3]
[334633838,1723367457752,-527.88,0.00021643,3]
[334633839,1723367457762,-877.66,0.00021643,3]
[334633840,1723367457771,-500.0,0.00021643,3]
[334633841,1723367457781,-1475.32,0.00021643,3]
[334633842,1723367457790,-1473.7,0.00021643,3]
[334633843,1723367457799,-921.95,0.00021643,3]
[334633844,1723367457810,-1020.65,0.00021643,3]
[334633845,1723367457819,-500.0,0.00021643,3]
[334633846,1723367457828,-500.0,0.00021643,3]
[334633847,1723367457838,-500.0,0.00021643,3]
[334633848,1723367457849,-757.02,0.00021643,3]
[334633849,1723367457859,-2764.93,0.00021643,3]
[334633850,1723367457870,-500.0,0.00021643,3]
[334633851,1723367457879,-2237.77,0.00021643,3]
[334633852,1723367457889,-7357.2,0.00021643,3]
[334633853,1723367457899,-496.31106052,0.00021643,3]
[334633854,1723367457909,-389.83654577,0.00021643,3]
[334633855,1723367457919,-500.0,0.00021643,3]
[334633856,1723367457930,-1543.56,0.00021643,3]
[334633857,1723367457939,-1036.02,0.00021643,3]
[334633858,1723367457950,-500.0,0.00021643,3]
[334633859,1723367457960,-12852.88,0.00021643,3]
[334633860,1723367457971,-500.0,0.00021643,3]
[334633861,1723367457980,-1288.41,0.00021643,3]
[334633862,1723367457990,-500.0,0.00021643,3]
[334633863,1723367458000,-4810.34,0.00021643,3]
[334633864,1723367458009,-500.0,0.00021643,3]
[334633865,1723367458019,-1845.77,0.00021643,3]
[334633866,1723367458029,-999.87,0.00021643,3]
[334633867,1723367458038,-500.0,0.00021643,3]
[334633868,1723367458048,-500.0,0.00021643,3]
[334633869,1723367458057,-503.14,0.00021643,3]
[334633870,1723367458175,-2294.31,0.00021643,3]
[334633871,1723367458185,-766.13,0.00021643,3]
[334633872,1723367458195,-2084.63,0.00021643,3]
[334633873,1723367458208,-500.0,0.00021643,3]
[334633874,1723367458218,-161.24057473,0.00021643,3]
[334633875,1723367458227,-500.0,0.00021643,3]
[334633876,1723367458238,-1078.06,0.00021643,3]
[334633877,1723367458247,-500.0,0.00021643,3]
[334633878,1723367458256,-663.18,0.00021643,3]
[334633879,1723367458265,-1152.74,0.00021643,3]
[334633880,1723367458275,-1535.28,0.00021643,3]
[334633881,1723367458286,-1425.43,0.00021643,3]
[334633882,1723367458296,-754.32,0.00021643,3]
[334633883,1723367458306,-504.07,0.00021643,3]
[334633884,1723367458315,-6728.13,0.00021643,3]
[334633885,1723367458324,-1106.57,0.00021643,3]
[334633886,1723367458334,-500.0,0.00021643,3]
[334633887,1723367458343,-500.0,0.00021643,3]
[334633888,1723367458352,-1292.63,0.00021643,3]
[334633889,1723367458362,-2050.27,0.00021643,3]
[334633890,1723367458372,-500.0,0.00021643,3]
[334633891,1723367458381,-500.0,0.00021643,3]
[334633892,1723367458390,-796.28,0.00021643,3]
[334633893,1723367458399,-500.0,0.00021643,3]
[334633894,1723367458409,-500.0,0.00021643,3]
[334633895,1723367458419,-500.0,0.00021643,3]
[334633896,1723367458428,-517.08,0.00021643,3]
[334633897,1723367458437,-1882.79,0.00021643,3]
[334633898,1723367458447,-500.0,0.00021643,3]
[334633899,1723367458456,-500.0,0.00021643,3]
[334633900,1723367458466,-500.0,0.00021643,3]
[334633901,1723367458475,-500.0,0.00021643,3]
[334633902,1723367458485,-500.0,0.00021643,3]
[334633903,1723367458494,-500.0,0.00021643,2]
[334633904,1723367458504,-6602.33,0.00021643,3]
[334633905,1723367458513,-500.0,0.00021643,3]
[334633906,1723367458523,-988.72,0.00021643,3]
[334633907,1723367458533,-814.73,0.00021643,3]
[334633908,1723367458543,-500.0,0.00021643,3]
[334633909,1723367458553,-481.38662051,0.00021643,3]
[334633910,1723367458563,-2804.64,0.00021643,3]
[334633911,1723367458573,-500.0,0.00021643,3]
[334633912,1723367458583,-790.1,0.00021643,3]
[334633913,1723367458592,-500.0,0.00021643,3]
[334633914,1723367458601,-754.02,0.00021643,3]
[334633915,1723367458611,-919.44,0.00021643,3]
[334633916,1723367458620,-634.79,0.00021643,3]
[334633917,1723367458630,-416.3721084,0.00021644,2]
[334633918,1723367458639,-153.0,0.00021644,2]
[334633919,1723367458649,-207.3044688,0.00021644,2]
[334633920,1723367458658,-267.9126531,0.00021644,2]
[334633921,1723367458668,-153.0,0.00021644,2]
[334633922,1723367458677,-207.3044688,0.00021644,2]
[334633923,1723367458687,-153.0,0.00021644,2]
[334633924,1723367458697,-267.9126531,0.00021644,2]
[334633925,1723367458707,-267.9126531,0.00021644,2]
[334633926,1723367458716,-153.0,0.00021644,2]
[334633927,1723367458726,-207.3044688,0.00021644,2]
[334633928,1723367458735,-306.0,0.00021644,2]
[334633929,1723367458744,-153.0,0.00021644,2]
[334633930,1723367458754,-153.0,0.00021644,2]
[334633931,1723367458763,-207.3044688,0.00021644,2]
[334633932,1723367458773,-267.9126531,0.00021644,2]
[334633933,1723367458783,-153.0,0.00021644,2]
[334633934,1723367458793,-267.9126531,0.00021644,2]
[334633935,1723367458803,-153.0,0.00021644,2]
[334633936,1723367458813,-153.0,0.00021644,2]
[334633937,1723367458824,-267.9126531,0.00021644,2]
[334633938,1723367458833,-153.0,0.00021644,2]
[334633939,1723367458842,-294.6834504,0.00021644,2]
[334633940,1723367458852,-153.0,0.00021644,2]
[334633941,1723367458861,-267.9126531,0.00021644,2]
[334633942,1723367458872,-267.9126531,0.00021644,2]
[334633943,1723367458881,-153.0,0.00021644,2]
[334633944,1723367458891,-294.6834504,0.00021644,2]
[334633945,1723367458900,-267.9126531,0.00021644,2]
[334633946,1723367458910,-153.0,0.00021644,2]
[334633947,1723367458921,-153.0,0.00021644,2]
[334633948,1723367458930,-151.0,0.000217,2]
[334633949,1723367458941,-151.0,0.000217,2]
[334633950,1723367458951,-151.1041681,0.00021774,2]
[334633951,1723367458961,-613.0,0.000218,2]
[334633952,1723367458971,-155.0,0.0002184,6]
[334633953,1723367458980,-500.0,0.00021869,2]
[334633954,1723367458990,-1000.0,0.000219,2]
[334633955,1723367458999,-500.0,0.00021917,3]
[334633956,1723367459009,-500.0,0.00021917,3]
[334633957,1723367459019,-500.0,0.00021917,3]
[334633958,1723367459029,-500.0,0.00021917,3]
[334633959,1723367459038,-500.0,0.00021917,3]
[334633960,1723367459048,-500.0,0.00021917,3]
[334633961,1723367459058,-500.0,0.00021917,3]
[334633962,1723367459068,-150.13789084,0.00021917,3]
[334633963,1723367459078,-500.0,0.00021917,3]
[334633964,1723367459087,-500.0,0.00021917,3]
[334633965,1723367459097,-500.0,0.00021917,3]
[334633966,1723367459106,-500.0,0.00021917,3]
[334633967,1723367459116,-374.1810855,0.00021917,3]
[334633968,1723367459125,-500.0,0.00021917,3]
[334633969,1723367459135,-500.0,0.00021917,3]
[334633970,1723367459145,-500.0,0.00021917,3]
[334633971,1723367459154,-500.0,0.00021917,3]
[334633972,1723367459163,-500.0,0.00021917,3]
[334633973,1723367459172,-500.0,0.00021917,3]
[334633974,1723367459182,-500.0,0.00021917,3]
[334633975,1723367459192,-922.13,0.00021917,3]
[334633976,1723367459203,-500.0,0.00021917,3]
[334633977,1723367459214,-500.0,0.00021917,3]
[334633978,1723367459224,-810.7,0.00021917,3]
[334633979,1723367459233,-697.41,0.00021917,3]
[334633980,1723367459243,-500.0,0.00021917,3]
[334633981,1723367459253,-553.86,0.00021917,3]
[334633982,1723367459263,-500.0,0.00021917,3]
[334633983,1723367459273,-417.42976378,0.00021917,3]
[334633984,1723367459283,-500.0,0.00021917,3]
[334633985,1723367459293,-500.0,0.00021917,3]
[334633986,1723367459303,-915.89,0.00021917,3]
[334633987,1723367459313,-826.24,0.00021917,3]
[334633988,1723367459323,-937.71,0.00021917,3]
[334633989,1723367459332,-500.0,0.00021917,3]
[334633990,1723367459342,-397.56557222,0.00021917,3]
[334633991,1723367459352,-750.32,0.00021917,3]
[334633992,1723367459362,-500.0,0.00021917,3]
[334633993,1723367459373,-500.0,0.00021917,3]
[334633994,1723367459383,-815.4,0.00021917,3]
[334633995,1723367459392,-500.0,0.00021917,3]
[334633996,1723367459402,-532.7,0.00021917,3]
[334633997,1723367459411,-556.0,0.00021917,3]
[334633998,1723367459422,-500.0,0.00021917,3]
[334633999,1723367459432,-500.0,0.00021917,3]
[334634000,1723367459443,-513.87926656,0.00021917,3]
[334634001,1723367459455,-500.0,0.00021917,3]
[334634002,1723367459465,-500.0,0.00021917,3]
[334634003,1723367459475,-500.0,0.00021917,3]
[334634004,1723367459484,-500.0,0.00021917,3]
[334634005,1723367459494,-500.0,0.00021917,3]
[334634006,1723367459506,-898.61,0.00021917,3]
[334634007,1723367459516,-500.0,0.00021917,3]
[334634008,1723367459526,-500.0,0.00021917,3]
[334634009,1723367459536,-500.0,0.00021917,3]
[334634010,1723367459546,-666.53,0.00021917,3]
[334634011,1723367459557,-500.0,0.00021917,3]
[334634012,1723367459582,-500.0,0.00021917,3]
[334634013,1723367459591,-500.0,0.00021917,3]
[334634014,1723367459601,-500.0,0.00021917,3]
[334634015,1723367459610,-500.0,0.00021917,3]
[334634016,1723367459621,-500.0,0.00021917,3]
[334634017,1723367459631,-500.0,0.00021917,3]
[334634018,1723367459640,-500.0,0.00021917,3]
[334634019,1723367459650,-500.0,0.00021917,3]
[334634020,1723367459661,-1496.38,0.00021917,3]
[334634021,1723367459670,-530.39,0.00021917,3]
[334634022,1723367459679,-577.6,0.00021917,3]
[334634023,1723367459689,-500.0,0.00021917,3]
[334634024,1723367459698,-875.22,0.00021917,3]
[334634025,1723367459707,-587.95,0.00021917,3]
[334634026,1723367459717,-500.0,0.00021917,3]
[334634027,1723367459726,-500.0,0.00021917,3]
[334634028,1723367459736,-500.0,0.00021917,3]
[334634029,1723367459745,-1026.11,0.00021917,3]
[334634030,1723367459754,-560.45,0.00021917,3]
[334634031,1723367459763,-682.55,0.00021917,3]
[334634032,1723367459773,-660.23,0.00021917,3]
[334634033,1723367459782,-572.42,0.00021917,3]
[334634034,1723367459793,-500.0,0.00021917,3]
[334634035,1723367459803,-757.17,0.00021917,3]
[334634036,1723367459812,-500.0,0.00021917,3]
[334634037,1723367459821,-576.05,0.00021917,2]
[334634038,1723367459831,-673.28,0.00021917,3]
[334634039,1723367459841,-500.0,0.00021917,3]
[334634040,1723367459851,-500.0,0.00021917,3]
[334634041,1723367459860,-500.0,0.00021917,3]
[334634042,1723367459870,-500.0,0.00021917,3]
[334634043,1723367459879,-635.46,0.00021917,3]
[334634044,1723367459889,-568.13,0.00021917,3]
[334634045,1723367459898,-693.6,0.00021917,3]
[334634046,1723367459908,-500.0,0.00021917,3]
[334634047,1723367459917,-500.0,0.00021917,3]
[334634048,1723367459927,-755.16,0.00021917,3]
[334634049,1723367459937,-500.0,0.00021917,3]
[334634050,1723367459946,-1253.28,0.00021917,3]
[334634051,1723367459956,-500.0,0.00021917,3]
[334634052,1723367459966,-810.68,0.00021917,3]
[334634053,1723367459976,-500.0,0.00021917,3]
[334634054,1723367459986,-1228.56,0.00021917,3]
[334634055,1723367459996,-586.07,0.00021917,3]
[334634056,1723367460005,-1034.44,0.00021917,3]
[334634057,1723367460015,-500.0,0.00021917,3]
[334634058,1723367460024,-500.0,0.00021917,3]
[334634059,1723367460034,-1096.91,0.00021917,3]
[334634060,1723367460044,-500.0,0.00021917,3]
[334634061,1723367460054,-720.32,0.00021917,3]
[334634062,1723367460064,-1202.25,0.00021917,3]
[334634063,1723367460074,-534.64,0.00021917,3]
[334634064,1723367460084,-500.0,0.00021917,3]
[334634065,1723367460093,-869.27675402,0.00021917,3]
[334634066,1723367460259,-436.02324598,0.00021917,3]
[334634067,1723367460269,-500.0,0.00021917,3]
[334634068,1723367460280,-753.18,0.00021917,3]
[334634069,1723367460290,-628.08,0.00021917,3]
[334634070,1723367460299,-500.0,0.00021917,3]
[334634071,1723367460309,-500.0,0.00021917,3]
[334634072,1723367460318,-1090.65,0.00021917,3]
[334634073,1723367460328,-500.0,0.00021917,3]
[334634074,1723367460447,-500.0,0.00021917,3]
[334634075,1723367460457,-500.0,0.00021917,3]
[334634076,1723367460466,-500.0,0.00021917,3]
[334634077,1723367460476,-500.0,0.00021917,3]
[334634078,1723367460485,-668.61,0.00021917,3]
[334634079,1723367460495,-500.0,0.00021917,3]
[334634080,1723367460504,-500.0,0.00021917,3]
[334634081,1723367460513,-500.0,0.00021917,3]
[334634082,1723367460523,-500.0,0.00021917,3]
[334634083,1723367460532,-500.0,0.00021917,3]
[334634084,1723367460542,-500.0,0.00021917,3]
[334634085,1723367460551,-500.0,0.00021917,3]
[334634086,1723367460561,-500.0,0.00021917,3]
[334634087,1723367460571,-500.0,0.00021917,3]
[334634088,1723367460580,-500.0,0.00021917,3]
[334634089,1723367460590,-500.0,0.00021917,3]
[334634090,1723367460599,-500.0,0.00021917,3]
[334634091,1723367460610,-1742.1,0.00021917,3]
[334634092,1723367460621,-1649.43,0.00021917,3]
[334634093,1723367460630,-500.0,0.00021917,3]
[334634094,1723367460642,-1672.15,0.00021917,3]
[334634095,1723367460652,-1158.36,0.00021917,3]
[334634096,1723367460662,-500.0,0.00021917,3]
[334634097,1723367460671,-500.0,0.00021917,3]
[334634098,1723367460681,-500.0,0.00021917,3]
[334634099,1723367460690,-1765.92,0.00021917,3]
[334634100,1723367460700,-500.0,0.00021917,3]
[334634101,1723367460709,-500.0,0.00021917,3]
[334634102,1723367460720,-500.0,0.00021917,3]
[334634103,1723367460731,-1063.78,0.00021917,3]
[334634104,1723367460741,-500.0,0.00021917,3]
[334634105,1723367460751,-2082.16,0.00021917,3]
[334634106,1723367460761,-2977.5,0.00021917,3]
[334634107,1723367460771,-500.0,0.00021917,3]
[334634108,1723367460780,-2021.78,0.00021917,3]
[334634109,1723367460789,-1724.63,0.00021917,3]
[334634110,1723367460798,-500.0,0.00021917,3]
[334634111,1723367460807,-500.0,0.00021917,3]
[334634112,1723367460817,-1825.06,0.00021917,3]
[334634113,1723367460827,-500.0,0.00021917,3]
[334634114,1723367460836,-1037.96,0.00021917,3]
[334634115,1723367460846,-10565.74,0.00021917,3]
[334634116,1723367460856,-160.95600866,0.00021917,3]
[334634117,1723367460865,-2066.71,0.00021917,3]
[334634118,1723367460875,-576.22,0.00021917,3]
[334634119,1723367460885,-500.0,0.00021917,3]
[334634120,1723367460894,-500.0,0.00021917,3]
[334634121,1723367460903,-3261.7,0.00021917,3]
[334634122,1723367460913,-500.0,0.00021917,3]
[334634123,1723367460923,-375.9183672,0.00021917,3]
[334634124,1723367461223,-151.0,0.0001852,2]
[334634125,1723367461234,-151.0,0.00018813,2]
[334634126,1723367461245,-239.611356,0.000189,2]
[334634127,1723367461255,-2993.60033153,0.00020639,2]
[334634128,1723367461266,-500.0,0.00020821,3]
[334634129,1723367461279,-500.0,0.00021095,3]
[334634130,1723367461290,-500.0,0.00021095,3]
[334634131,1723367461300,-500.0,0.00021369,3]
[334634132,1723367461312,-500.0,0.00021369,3]
[334634133,1723367461323,-500.0,0.00021369,3]
[334634134,1723367461334,-294.6834504,0.0002137,2]
[334634135,1723367461346,-500.0,0.00021643,3]
[334634136,1723367461356,-500.0,0.00021643,3]
[334634137,1723367461366,-500.0,0.00021643,3]
[334634138,1723367461378,-153.0,0.00021644,2]
[334634139,1723367461387,-337.6316328,0.00021917,3]
[334634140,1723367461399,-500.0,0.00021917,3]
[334634141,1723367461410,-500.0,0.00021917,3]
[334634142,1723367461420,-2064.29,0.00021917,3]
[334634143,1723367461432,-1959.8,0.00021917,3]
[334634144,1723367461444,-500.0,0.00021917,3]
[334634145,1723367461453,-540.09,0.00021917,3]
[334634146,1723367461462,-500.0,0.00021917,3]
[334634147,1723367461474,-500.0,0.00021917,3]
[334634148,1723367461485,-500.0,0.00021917,3]
[334634149,1723367461495,-500.0,0.00021917,3]
[334634150,1723367461504,-500.0,0.00021917,3]
[334634151,1723367461513,-805.51,0.00021917,3]
[334634152,1723367461522,-513.1,0.00021917,3]
[334634153,1723367461531,-1372.34,0.00021917,3]